fUSD/lending_fUSD_20240714
["ID","MTS","AMOUNT","RATE_DAILY","PERIOD"]
[332040828,1720941061196,-500.0,0.00013808,2]
[332040830,1720941061207,-500.0,0.00013808,2]
[332040832,1720941061216,-500.0,0.00013808,2]
[332040833,1720941061227,-500.0,0.00013808,2]
[332040835,1720941061239,-870.84,0.00013808,2]
[332040836,1720941061250,-643.10433592,0.00013808,2]
[332040838,1720941061261,-500.0,0.00013808,2]
[332040839,1720941061271,-500.0,0.00013808,2]
[332040841,1720941061282,-534.76,0.00013808,2]
[332040843,1720941061292,-552.59,0.00013808,2]
[332040844,1720941061303,-500.0,0.00013808,2]
[332040846,1720941061313,-500.0,0.00013808,2]
[332040848,1720941061324,-618.47,0.00013808,2]
[332040849,1720941061335,-500.0,0.00013808,2]
[332040851,1720941061345,-500.0,0.00013808,2]
[332040852,1720941061354,-500.0,0.00013808,2]
[332040854,1720941061365,-500.0,0.00013808,2]
[332040856,1720941061378,-500.0,0.00013808,2]
[332040858,1720941061390,-500.0,0.00013808,2]
[332040859,1720941061401,-500.0,0.00013808,2]
[332040861,1720941061411,-696.12,0.00013808,2]
[332040862,1720941061422,-500.0,0.00013808,2]
[332040864,1720941061431,-500.0,0.00013808,2]
[332040866,1720941061442,-348.68006453,0.00013808,2]
[332040947,1720941062427,-304.45592901,0.00013699,2]
[332041004,1720941062987,-500.0,0.00013698,2]
[332041006,1720941062996,-500.0,0.00013698,2]
[332041008,1720941063006,-18.71340119,0.00013699,2]
[332041010,1720941063015,-500.0,0.00013753,2]
[332041011,1720941063024,-500.0,0.00013753,2]
[332041013,1720941063034,-500.0,0.00013753,2]
[332041015,1720941063044,-246.73993547,0.00013808,2]
[332041017,1720941063054,-500.0,0.00013808,2]
[332041019,1720941063063,-500.0,0.00013808,2]
[332041021,1720941063073,-500.0,0.00013808,2]
[332041023,1720941063082,-500.0,0.00013808,2]
[332041025,1720941063091,-500.0,0.00013808,2]
[332041027,1720941063100,-500.0,0.00013808,2]
[332041029,1720941063110,-500.0,0.00013808,2]
[332041031,1720941063119,-500.0,0.00013808,2]
[332041033,1720941063128,-500.0,0.00013808,2]
[332041035,1720941063139,-500.0,0.00013808,2]
[332041037,1720941063148,-500.0,0.00013808,2]
[332041039,1720941063157,-500.0,0.00013808,2]
[332041041,1720941063166,-500.0,0.00013808,2]
[332041043,1720941063176,-500.0,0.00013808,2]
[332041045,1720941063185,-864.4,0.00013808,2]
[332041047,1720941063195,-518.23,0.00013808,2]
[332041049,1720941063205,-500.0,0.00013808,2]
[332041051,1720941063214,-500.0,0.00013808,2]
[332041053,1720941063223,-500.0,0.00013808,2]
[332041055,1720941063233,-500.0,0.00013808,2]
[332041057,1720941063242,-500.0,0.00013808,2]
[332041059,1720941063252,-500.0,0.00013808,2]
[332041061,1720941063262,-500.0,0.00013808,2]
[332041063,1720941063271,-500.0,0.00013808,2]
[332041065,1720941063280,-500.0,0.00013808,2]
[332041067,1720941063290,-500.0,0.00013808,2]
[332041069,1720941063301,-500.0,0.00013808,2]
[332041071,1720941063311,-500.0,0.00013808,2]
[332041073,1720941063320,-203.43394358,0.00013808,2]
[332041075,1720941063331,-500.0,0.00013808,2]
[332041077,1720941063340,-500.0,0.00013808,2]
[332041079,1720941063350,-500.0,0.00013808,2]
[332041081,1720941063360,-500.0,0.00013808,2]
[332041083,1720941063370,-500.0,0.00013808,2]
[332041085,1720941063379,-669.78,0.00013808,2]
[332041087,1720941063389,-500.0,0.00013808,2]
[332041089,1720941063398,-638.2,0.00013808,2]
[332041091,1720941063407,-500.0,0.00013808,2]
[332041093,1720941063417,-500.0,0.00013808,2]
[332041095,1720941063426,-500.0,0.00013808,2]
[332041097,1720941063436,-952.4,0.00013808,2]
[332041098,1720941063445,-718.69,0.00013808,2]
[332041100,1720941063455,-500.0,0.00013808,2]
[332041102,1720941063464,-500.0,0.00013808,2]
[332041104,1720941063473,-500.0,0.00013808,2]
[332041106,1720941063483,-1010.42,0.00013808,2]
[332041108,1720941063491,-500.0,0.00013808,2]
[332041110,1720941063501,-662.1,0.00013808,2]
[332041112,1720941063510,-548.55,0.00013808,2]
[332041114,1720941063520,-500.0,0.00013808,2]
[332041116,1720941063529,-500.0,0.00013808,2]
[332041118,1720941063539,-500.0,0.00013808,2]
[332041120,1720941063548,-548.93,0.00013808,2]
[332041122,1720941063557,-578.68,0.00013808,2]
[332041123,1720941063566,-500.0,0.00013808,2]
[332041125,1720941063575,-500.0,0.00013808,2]
[332041127,1720941063585,-630.75,0.00013808,2]
[332041129,1720941063594,-666.55,0.00013808,2]
[332041131,1720941063604,-500.0,0.00013808,2]
[332041133,1720941063613,-500.0,0.00013808,2]
[332041135,1720941063622,-500.0,0.00013808,2]
[332041137,1720941063631,-500.0,0.00013808,2]
[332041139,1720941063641,-500.0,0.00013808,2]
[332041141,1720941063656,-500.0,0.00013808,2]
[332041143,1720941063666,-547.78607808,0.00013808,2]
[332041145,1720941063676,-500.0,0.00013808,2]
[332041147,1720941063686,-567.23,0.00013808,2]
[332041149,1720941063696,-500.0,0.00013808,2]
[332041151,1720941063705,-500.0,0.00013808,2]
[332041153,1720941063714,-801.98,0.00013808,2]
[332041155,1720941063724,-500.0,0.00013808,2]
[332041157,1720941063734,-599.86,0.00013808,2]
[332041158,1720941063744,-500.0,0.00013808,2]
[332041160,1720941063754,-1582.65,0.00013808,2]
[332041162,1720941063764,-500.0,0.00013808,2]
[332041164,1720941063773,-500.0,0.00013808,2]
[332041166,1720941063783,-500.0,0.00013808,2]
[332041168,1720941063792,-528.52,0.00013808,2]
[332041170,1720941063802,-500.0,0.00013808,2]
[332041172,1720941063814,-703.38,0.00013808,2]
[332041175,1720941063824,-500.0,0.00013808,2]
[332041177,1720941063833,-500.0,0.00013808,2]
[332041179,1720941063843,-500.0,0.00013808,2]
[332041180,1720941063853,-513.65,0.00013808,2]
[332041182,1720941063862,-931.58,0.00013808,2]
[332041184,1720941063872,-500.0,0.00013808,2]
[332041186,1720941063882,-500.0,0.00013808,2]
[332041188,1720941063892,-500.0,0.00013808,2]
[332041190,1720941063902,-500.0,0.00013808,2]
[332041192,1720941063912,-500.0,0.00013808,2]
[332041194,1720941063923,-851.23,0.00013808,2]
[332041196,1720941063932,-500.0,0.00013808,2]
[332041198,1720941063942,-500.0,0.00013808,2]
[332041200,1720941063952,-60.76349337,0.00013808,2]
[332041215,1720941064200,-500.0,0.00013698,2]
[332041217,1720941064210,-439.23650663,0.00013808,2]
[332041219,1720941064219,-500.0,0.00013808,2]
[332041221,1720941064229,-1850.58,0.00013808,2]
[332041223,1720941064238,-658.64,0.00013808,2]
[332041225,1720941064247,-500.0,0.00013808,2]
[332041227,1720941064257,-500.0,0.00013808,2]
[332041228,1720941064267,-671.48750221,0.00013808,2]
[332041679,1720941394610,-3539.2186,0.00010074,2]
[332041680,1720941394637,-460.9,0.00010607,2]
[332041681,1720941394663,-197.16,0.00010959,2]
[332041682,1720941394688,-248.59,0.00010959,2]
[332041683,1720941421564,-500.0,0.00011012,2]
[332041684,1720941421592,-500.0,0.00011012,2]
[332041685,1720941421618,-500.0,0.00011012,2]
[332041686,1720941421644,-1288.72954437,0.00011197,2]
[332041687,1720941421670,-48768.02241758,0.00012379,2]
[332041688,1720941421695,-407.3,0.00012379,2]
[332041689,1720941421721,-150.0,0.00012615,2]
[332041690,1720941421746,-500.0,0.00012656,2]
[332041691,1720941421774,-500.0,0.00012656,2]
[332041692,1720941421800,-1470.3,0.00012656,2]
[332041693,1720941421837,-499.99,0.00012761,2]
[332041694,1720941421866,-1052.67057692,0.00012761,2]
[332041695,1720941421893,-3207.1,0.00012764,2]
[332041696,1720941421920,-169.75,0.00012777,2]
[332041697,1720941421945,-999.99,0.00012777,2]
[332041698,1720941421974,-260.14,0.00012777,2]
[332041699,1720941422002,-460.9,0.00012871,2]
[332041700,1720941452762,3661.43661955,0.00010959,2]
[332041701,1720941461614,553.85882248,0.00010959,2]
[332041702,1720941462192,411.97119588,0.00010959,2]
[332041704,1720941484652,-300.0,0.00012671,2]
[332041705,1720941484684,-10264.92,0.00012672,2]
[332041706,1720941496954,364.41583956,0.00010959,2]
[332041716,1720941630095,4179.48528395,0.00025,120]
[332041721,1720941812052,5500.0,0.00025,60]
[332041722,1720941834434,431.27,0.00010474,2]
[332041728,1720942050348,20000.0,0.00010474,2]
[332041729,1720942050369,20000.0,0.00010474,2]
[332041730,1720942050391,20000.0,0.00010474,2]
[332041731,1720942050411,20000.0,0.00010474,2]
[332041732,1720942050438,136954.74864446,0.00010474,2]
[332041771,1720942167149,-251.05,0.00017,31]
[332041772,1720942167182,-152.0,0.00017595,15]
[332041773,1720942167206,-152.0,0.00017763,16]
[332041774,1720942167232,-152.0,0.00017931,17]
[332041775,1720942167256,-5001.06935,0.00018,30]
[332041776,1720942167282,-152.0,0.000181,18]
[332041777,1720942167308,-152.0,0.00018268,19]
[332041778,1720942167333,-152.0,0.00018436,20]
[332041779,1720942167361,-1019.5,0.00018849,30]
[332041780,1720942167407,-469.10084788,0.0002,30]
[332041781,1720942167431,-4790.91870733,0.0002,30]
[332041782,1720942167482,-1800.0,0.00022,23]
[332041783,1720942167512,-1800.0,0.00023,24]
[332041784,1720942167542,-1019.5,0.00023831,30]
[332041785,1720942167566,-1800.0,0.00024,25]
[332041786,1720942167589,-14639.49982971,0.00024,15]
[332041787,1720942167617,-150.0,0.00024577,15]
[332041788,1720942167645,-2110.0,0.00025,15]
[332041789,1720942167669,-2697.5640942,0.00025,15]
[332041790,1720942167693,-1800.0,0.00025,26]
[332041791,1720942167717,-1800.0,0.00025,26]
[332041792,1720942167741,-1862.265,0.00025,35]
[332041793,1720942167765,-2000.0,0.00025,30]
[332041794,1720942167789,-1903.95348213,0.00025,45]
[332041795,1720942167816,-2110.0,0.000255,15]
[332041796,1720942167841,-2110.0,0.00026,15]
[332041797,1720942167864,-2000.0,0.00026,30]
[332041798,1720942167887,-1500.0,0.00026,120]
[332041799,1720942167911,-2500.0,0.00026,120]
[332041800,1720942167934,-1800.0,0.00026,27]
[332041801,1720942167960,-2110.0,0.000265,15]
[332041802,1720942167985,-2685.58387668,0.00026789,17]
[332041803,1720942168013,-800.0,0.00026986,120]
[332041804,1720942168038,-800.0,0.00026986,120]
[332041805,1720942168063,-800.0,0.00026986,120]
[332041806,1720942168088,-800.0,0.00026986,120]
[332041807,1720942168114,-800.0,0.00026986,120]
[332041808,1720942168139,-800.0,0.00026986,120]
[332041809,1720942168164,-800.0,0.00026986,120]
[332041810,1720942168189,-800.0,0.00026986,120]
[332041811,1720942168214,-623663.71765597,0.00027,30]
[332041812,1720942168238,-2110.0,0.00027,15]
[332041813,1720942168261,-1172.33,0.00027,30]
[332041814,1720942168284,-150.72193744,0.00027,120]
[332041815,1720942168308,-1800.0,0.00027,28]
[332041816,1720942168332,-1326.20890903,0.0002701,30]
[332041817,1720942168356,-304.72253028,0.0002701,30]
[332041818,1720942168380,-2662.14219701,0.0002701,30]
[332041819,1720942168403,-601.3674107,0.0002701,30]
[332041820,1720942168428,-150.0,0.00027381,120]
[332041821,1720942168455,-293.69282049,0.0002739,30]
[332041822,1720942168480,-150.0,0.00027397,30]
[332041823,1720942168503,-2100.0,0.00027397,20]
[332041824,1720942168526,-345.3131148,0.00027397,20]
[332041825,1720942168549,-2000.0,0.00027397,30]
[332041826,1720942168572,-2000.0,0.00027397,30]
[332041827,1720942168596,-2000.0,0.00027397,30]
[332041828,1720942168620,-2000.0,0.00027397,30]
[332041829,1720942168644,-2000.0,0.00027397,30]
[332041830,1720942168669,-2000.0,0.00027397,30]
[332041831,1720942168695,-1318.93475973,0.00027397,30]
[332041832,1720942168722,-200.0,0.00027397,60]
[332041833,1720942168747,-8090.26,0.00027397,15]
[332041834,1720942168771,-2110.0,0.000275,15]
[332041835,1720942168796,-150.0,0.00027521,120]
[332041836,1720942168819,-150.0,0.00027534,30]
[332041837,1720942168843,-150.0,0.00027671,30]
[332041838,1720942168868,-150.0,0.00027808,30]
[332041839,1720942168891,-391.0,0.0002783,15]
[332041840,1720942168915,-150.0,0.00027945,30]
[332041841,1720942168940,-1800.0,0.00028,29]
[332041842,1720942168967,-521.0,0.00028,120]
[332041843,1720942168996,-2110.0,0.00028,15]
[332041844,1720942169021,-172645.64978643,0.00028,120]
[332041845,1720942169047,-150.0,0.00028082,30]
[332041846,1720942169301,-150.0,0.00028219,30]
[332041847,1720942169326,-150.0,0.00028356,30]
[332041848,1720942169350,-150.0,0.00028493,30]
[332041849,1720942169374,-2110.0,0.000285,15]
[332041850,1720942169397,-465.05046747,0.000285,120]
[332041851,1720942169422,-150.0,0.0002863,30]
[332041852,1720942169447,-150.0,0.00028767,30]
[332041853,1720942169471,-1019.5,0.00028812,30]
[332041854,1720942169495,-150.0,0.00028904,30]
[332041855,1720942169519,-1000.0,0.00029,30]
[332041856,1720942169543,-1800.0,0.00029,30]
[332041857,1720942169566,-2110.0,0.00029,15]
[332041858,1720942169590,-29375.31217358,0.00029,120]
[332041859,1720942169614,-7451.97241,0.00029,30]
[332041860,1720942169638,-150.0,0.00029041,30]
[332041861,1720942169662,-150.0,0.00029178,30]
[332041862,1720942169686,-150.0,0.00029315,30]
[332041863,1720942169710,-150.0,0.00029452,30]
[332041864,1720942169735,-1000.0,0.000295,30]
[332041865,1720942169759,-2110.0,0.000295,15]
[332041866,1720942169783,-150.0,0.00029589,30]
[332041867,1720942169807,-150.0,0.00029726,30]
[332041868,1720942169831,-9533.0,0.000298,30]
[332041869,1720942169861,-245.87436308,0.00029863,30]
[332041870,1720942169886,-600.0,0.00029874,31]
[332041871,1720942169911,-483.05960382,0.0002988,120]
[332041872,1720942169936,-381.66299316,0.0003,30]
[332041873,1720942169961,-1542.77044345,0.0003,120]
[332041874,1720942169985,-578.62369404,0.0003,120]
[332041875,1720942170014,-317.0,0.0003,60]
[332041876,1720942170039,-14000.0,0.0003,60]
[332041877,1720942170066,-1500.0,0.0003,50]
[332041878,1720942170091,-1000.0,0.0003,120]
[332041879,1720942170116,-2000.0,0.0003,60]
[332041882,1720942170141,-10000.0,0.0003,30]
[332041884,1720942170167,-10000.0,0.0003,15]
[332041886,1720942170193,-10000.0,0.0003,30]
[332041888,1720942170218,-10000.0,0.0003,30]
[332041890,1720942170241,-10000.0,0.0003,30]
[332041892,1720942170266,-150.0,0.0003,30]
[332041894,1720942170290,-1800.0,0.0003,31]
[332041896,1720942170314,-2110.0,0.0003,15]
[332041898,1720942170338,-1732.17825409,0.0003,120]
[332041901,1720942170363,-1000.0,0.0003,60]
[332041903,1720942170386,-98792.12228129,0.0003,30]
[332041905,1720942170411,-2000.0,0.0003,120]
[332041907,1720942170436,-203.01897046,0.00030137,60]
[332041909,1720942170462,-2110.0,0.000305,15]
[332041911,1720942170487,-548.0,0.00030613,30]
[332041913,1720942170512,-4117.48923807,0.000308,18]
[332041914,1720942170536,-1791.97647421,0.000309,120]
[332041915,1720942170561,-150.0,0.00030949,120]
[332041916,1720942170586,-2110.0,0.00031,15]
[332041917,1720942170610,-7451.97241,0.00031,30]
[332041919,1720942170635,-2110.0,0.000315,15]
[332041922,1720942170660,-172.31,0.00031644,91]
[332041924,1720942170685,-5380.407,0.00032,15]
[332041926,1720942170709,-1374.45530761,0.00032,60]
[332041928,1720942170734,-1000.0,0.00032,120]
[332041930,1720942170758,-2110.0,0.00032,15]
[332041932,1720942170783,-6143.170124,0.000322,30]
[332041933,1720942170808,-150.0,0.00032298,120]
[332041934,1720942170833,-150.0,0.00032453,120]
[332041935,1720942170857,-2110.0,0.000325,15]
[332041936,1720942170883,-2935.24267317,0.00033,120]
[332041937,1720942170906,-22703.46708185,0.00033,30]
[332041938,1720942170930,-2110.0,0.00033,15]
[332041939,1720942170955,-7451.97241,0.00033,30]
[332041940,1720942170980,-4485.06,0.00033151,120]
[332041941,1720942171009,-2110.0,0.000335,15]
[332041942,1720942171035,-607.0,0.00033674,30]
[332041943,1720942171060,-1019.5,0.00033793,30]
[332041944,1720942171087,-850.0,0.00034,70]
[332041945,1720942171111,-1000.0,0.00034,120]
[332041946,1720942171135,-10000.0,0.00034,30]
[332041947,1720942171163,-549.3195704,0.00034,120]
[332041948,1720942171187,-2110.0,0.00034,15]
[332041949,1720942171211,-1000.0,0.00034,120]
[332041950,1720942171235,-150.0,0.00034479,120]
[332041951,1720942171260,-1011.39,0.000345,15]
[332041952,1720942171285,-150.0,0.00035,120]
[332041953,1720942171309,-10814.78919978,0.00035,15]
[332041954,1720942171334,-152.38864591,0.00035,30]
[332041955,1720942171359,-1342.38109611,0.00035,30]
[332041956,1720942171384,-13302.89,0.00035,30]
[332041957,1720942171410,-133649.2573615,0.00035,30]
[332041958,1720942171434,-1591345.34944314,0.00035,30]
[332041978,1720942175865,-1929106.43841663,0.00035,30]
[332041979,1720942175890,-7451.97241,0.00035,30]
[332041980,1720942175916,-33700.0,0.00035,30]
[332041981,1720942175940,-980.69102597,0.00035,120]
[332041982,1720942175963,-1000.0,0.000353,15]
[332041983,1720942175987,-1756.04,0.00035616,120]
[332041984,1720942176015,-1756.04,0.00035616,120]
[332041985,1720942176039,-1756.04,0.00035616,120]
[332041986,1720942176061,-1756.04,0.00035616,120]
[332041987,1720942176086,-1756.04,0.00035616,120]
[332041988,1720942176110,-1756.04,0.00035616,120]
[332041989,1720942176137,-1756.04,0.00035616,120]
[332041990,1720942176415,-1756.04,0.00035616,120]
[332041991,1720942176440,-1756.04,0.00035616,120]
[332041992,1720942176468,-1756.04,0.00035616,120]
[332041993,1720942176495,-1756.04,0.00035616,120]
[332041994,1720942176523,-1756.04,0.00035616,120]
[332041995,1720942176550,-1756.04,0.00035616,120]
[332041996,1720942176577,-1756.04,0.00035616,120]
[332041997,1720942176602,-1756.04,0.00035616,120]
[332041998,1720942176627,-1756.04,0.00035616,120]
[332041999,1720942176652,-1756.04,0.00035616,120]
[332042000,1720942176677,-1756.04,0.00035616,120]
[332042001,1720942176704,-1756.04,0.00035616,120]
[332042002,1720942176733,-1756.04,0.00035616,120]
[332042003,1720942176759,-1756.04,0.00035616,120]
[332042004,1720942176784,-1756.04,0.00035616,120]
[332042005,1720942176810,-1756.04,0.00035616,120]
[332042006,1720942176833,-1756.22129441,0.00035616,120]
[332042007,1720942176859,-1300.0,0.00036,80]
[332042008,1720942176888,-1000.0,0.00036,120]
[332042009,1720942176915,-1000.0,0.00036,120]
[332042010,1720942176969,-5052.75662175,0.000368,30]
[332042011,1720942176999,-4000.0,0.00036986,120]
[332042012,1720942177026,-4114.84135102,0.00036986,120]
[332042013,1720942177053,-2000.0,0.00037,30]
[332042014,1720942177080,-7451.97241,0.00037,30]
[332042015,1720942177104,-5037.0,0.00037109,120]
[332042016,1720942177128,-2000.0,0.000375,30]
[332042017,1720942177152,-600.0,0.00037987,31]
[332042018,1720942177176,-2000.0,0.00038,60]
[332042019,1720942177203,-327.2259864,0.00038,30]
[332042020,1720942177228,-2000.0,0.00038,30]
[332042021,1720942177252,-74191.21405206,0.00038,120]
[332042022,1720942177279,-838.0,0.00038,120]
[332042023,1720942177304,-50000.0,0.00038,30]
[332042024,1720942177329,-85170.74091521,0.00038,30]
[332042025,1720942177356,-1000.0,0.00038,120]
[332042026,1720942177381,-10000.0,0.00038,30]
[332042027,1720942177405,-155.0,0.00038,90]
[332042028,1720942177429,-9740.0,0.00038,30]
[332042029,1720942177453,-6025.0,0.00038,90]
[332042030,1720942177478,-1585.59482632,0.00038,120]
[332042031,1720942177502,-185.4753297,0.00038,120]
[332042032,1720942177527,-4043.75605437,0.000384,33]
[332042033,1720942177550,-154.3854751,0.000384,33]
[332042034,1720942177574,-1064.19672498,0.000385,120]
[332042035,1720942177597,-2000.0,0.000385,30]
[332042036,1720942177623,-1019.5,0.00038775,30]
[332042037,1720942177649,-700559.09710608,0.000388,30]
[332042047,1720942196872,-469492.9405458,0.000388,30]
[332042048,1720942196896,-2050.47764233,0.000389,30]
[332042049,1720942196918,-199963.77684944,0.000389,30]
[332042050,1720942196943,-2693.0,0.00038989,26]
[332042051,1720942196967,-1122.0,0.00039,120]
[332042052,1720942196989,-2965.03617176,0.00039,120]
[332042053,1720942197017,-570.11167513,0.00039,120]
[332042054,1720942197042,-1000.0,0.00039,120]
[332042055,1720942197068,-2590.99679263,0.00039,120]
[332042056,1720942197094,-2000.0,0.00039,30]
[332042057,1720942197118,-25999.58205327,0.00039,120]
[332042058,1720942197141,-3000.0,0.00039,30]
[332042059,1720942197169,-500.0,0.00039,120]
[332042060,1720942197467,-7451.97241,0.00039,30]
[332042061,1720942197491,-569.25637344,0.000394,30]
[332042062,1720942197514,-20000.0,0.000394,30]
[332042063,1720942197540,-2000.0,0.000395,30]
[332042064,1720942197580,-22986.6408237,0.000395,30]
[332042065,1720942197604,-400.0,0.00039677,60]
[332042066,1720942197627,-3566.60877344,0.000397,60]
[332042067,1720942197651,-31239.58398,0.000398,60]
[332042068,1720942197674,-153.13050492,0.0003985,30]
[332042069,1720942197699,-2205.10015133,0.000399,120]
[332042070,1720942197724,-250.0,0.00039999,30]
[332042071,1720942197753,-50000.0,0.0004,30]
[332042072,1720942197782,-50000.0,0.0004,40]
[332042073,1720942197806,-500.0,0.0004,120]
[332042074,1720942197829,-782.90213295,0.0004,30]
[332042075,1720942197851,-477.12749073,0.0004,30]
[332042076,1720942197874,-1482.94036619,0.0004,30]
[332042077,1720942197900,-1000.0,0.0004,120]
[332042078,1720942197928,-1177.87780415,0.0004,120]
[332042079,1720942197954,-2000.0,0.0004,80]
[332042080,1720942197979,-2000.0,0.0004,80]
[332042081,1720942198007,-2000.0,0.0004,80]
[332042082,1720942198032,-2000.0,0.0004,80]
[332042083,1720942198055,-2000.0,0.0004,80]
[332042084,1720942198079,-2000.0,0.0004,80]
[332042085,1720942198102,-2000.0,0.0004,80]
[332042086,1720942198125,-2000.0,0.0004,80]
[332042087,1720942198147,-2000.0,0.0004,80]
[332042088,1720942198174,-2000.0,0.0004,80]
[332042089,1720942198197,-500.0,0.0004,30]
[332042090,1720942198223,-150.0,0.0004,120]
[332042091,1720942198246,-356.0,0.0004,60]
[332042092,1720942198273,-3000.0,0.0004,100]
[332042093,1720942198297,-125950.89060678,0.0004,30]
[332042094,1720942198324,-358.0,0.0004,60]
[332042095,1720942198351,-1000.0,0.0004,120]
[332042096,1720942198376,-500.0,0.0004,120]
[332042097,1720942198400,-150.0,0.0004,120]
[332042098,1720942198426,-880.2701217,0.0004,120]
[332042099,1720942198454,-361.0,0.0004,60]
[332042100,1720942198481,-614.73570545,0.0004,120]
[332042101,1720942198506,-339.92193439,0.0004,30]
[332042102,1720942198529,-812.70827538,0.0004,30]
[332042103,1720942198558,-10000.0,0.0004,30]
[332042104,1720942198582,-151.0,0.0004,120]
[332042105,1720942198609,-151.0,0.0004,120]
[332042106,1720942198633,-10000.0,0.0004,30]
[332042107,1720942198657,-1500.0,0.0004,60]
[332042108,1720942198681,-1659.57298177,0.0004,120]
[332042109,1720942198704,-326.0,0.0004,60]
[332042110,1720942198728,-2926.29165453,0.0004,30]
[332042111,1720942198752,-150000.0,0.0004,30]
[332042112,1720942198776,-500.0,0.0004,120]
[332042113,1720942198802,-1585.59482632,0.0004,120]
[332042114,1720942198830,-372.0,0.0004,60]
[332042115,1720942198854,-7374.05772973,0.0004,60]
[332042116,1720942198877,-50187.0,0.0004,15]
[332042117,1720942198901,-1970.9381127,0.0004,120]
[332042118,1720942198924,-526.70404573,0.0004,30]
[332042119,1720942198948,-361.25266699,0.0004,30]
[332042120,1720942198977,-2741.15646828,0.0004,30]
[332042121,1720942199006,-1140.35799418,0.0004,30]
[332042122,1720942199032,-2325.80189077,0.0004,120]
[332042123,1720942199056,-7353.52,0.0004,30]
[332042124,1720942199082,-338.0,0.0004,120]
[332042125,1720942199106,-11292.94423545,0.0004,30]
[332042126,1720942199130,-308.113546,0.0004,60]
[332042127,1720942199155,-151.0,0.00040685,120]
[332042128,1720942199180,-5822.38415418,0.00040888,60]
[332042129,1720942199205,-130018.23916792,0.000409,30]
[332042130,1720942199233,-50000.0,0.00041,31]
[332042131,1720942199261,-50000.0,0.00041,41]
[332042132,1720942199284,-1000.0,0.00041,120]
[332042133,1720942199309,-3000.0,0.00041,105]
[332042134,1720942199333,-2481.0748935,0.00041,30]
[332042135,1720942199355,-150.0,0.00041,120]
[332042136,1720942199378,-1049.1202537,0.00041,120]
[332042137,1720942199403,-393714.67387008,0.00041,30]
[332042138,1720942199426,-48824.779999,0.00041,120]
[332042139,1720942199450,-983532.83232426,0.00041,30]
[332042141,1720942217753,-270.022,0.00039199,30]
[332042142,1720942217780,-1291501.29934975,0.00041,30]
[332042143,1720942217805,-419.97,0.00041,120]
[332042144,1720942217830,-7451.97241,0.00041,30]
[332042145,1720942217854,-200.0,0.00041,31]
[332042146,1720942217878,-152.0,0.00041041,31]
[332042147,1720942217902,-152.0,0.00041041,31]
[332042148,1720942217925,-152.0,0.00041041,31]
[332042149,1720942217949,-152.0,0.00041041,31]
[332042150,1720942217972,-36087.64205109,0.00041078,120]
[332042151,1720942217994,-515.16279428,0.00041095,30]
[332042152,1720942218020,-1771.72,0.00041095,120]
[332042153,1720942218043,-1771.72,0.00041095,120]
[332042154,1720942218068,-1771.72,0.00041095,120]
[332042155,1720942218095,-1771.72,0.00041095,120]
[332042156,1720942218118,-1771.72,0.00041095,120]